[Event "Early-Titled-Tuesday-Blitz-June-18-2024"]
[Site "Chess.com"]
[Date "2024.06.18"]
[Round "8"]
[White "artooon"]
[Black "Karateloru"]
[Result "1-0"]
[WhiteElo "3095"]
[BlackElo "2783"]
[TimeControl "180+1"]
[EndTime "9:32:05 PDT"]
[Termination "artooon won by resignation"]

1. e4 {[%clk 0:03:00.9]} 1... c6 {[%clk 0:02:59.2]} 2. d4 {[%clk 0:03:00.8]}
2... d5 {[%clk 0:02:59.7]} 3. e5 {[%clk 0:03:01.3]} 3... Bf5 {[%clk 0:02:58.4]}
4. Nc3 {[%clk 0:03:01.3]} 4... e6 {[%clk 0:02:56.7]} 5. g4 {[%clk 0:03:01.3]}
5... Bg6 {[%clk 0:02:56.3]} 6. Nge2 {[%clk 0:03:01.7]} 6... c5 {[%clk
0:02:55.8]} 7. h4 {[%clk 0:03:02]} 7... h5 {[%clk 0:02:54.9]} 8. Nf4 {[%clk
0:03:02.5]} 8... Bh7 {[%clk 0:02:55]} 9. g5 {[%clk 0:03:03.2]} 9... Bf5 {[%clk
0:02:30.6]} 10. g6 {[%clk 0:03:02]} 10... fxg6 {[%clk 0:02:29.1]} 11. Bd3 {[%clk
0:03:02.1]} 11... Qd7 {[%clk 0:02:03.8]} 12. Nxg6 {[%clk 0:02:59]} 12... Bxg6
{[%clk 0:02:02.2]} 13. Bxg6+ {[%clk 0:02:59.9]} 13... Kd8 {[%clk 0:02:02.4]} 14.
Qf3 {[%clk 0:02:52.8]} 14... Ne7 {[%clk 0:02:00]} 15. Bg5 {[%clk 0:02:52.4]}
15... Nc6 {[%clk 0:01:59.8]} 16. Nb5 {[%clk 0:02:44.3]} 16... Nxd4 {[%clk
0:01:52.8]} 17. Nxd4 {[%clk 0:02:44.4]} 17... cxd4 {[%clk 0:01:53.7]} 18. O-O-O
{[%clk 0:02:44.3]} 18... Kc7 {[%clk 0:01:52]} 19. Bxh5 {[%clk 0:02:35.8]} 19...
Nc6 {[%clk 0:01:48.6]} 20. Bg4 {[%clk 0:02:16.2]} 20... Be7 {[%clk 0:01:34]} 21.
Qg3 {[%clk 0:02:06.3]} 21... Bxg5+ {[%clk 0:01:25.7]} 22. hxg5 {[%clk
0:02:07.2]} 22... Qf7 {[%clk 0:01:23.7]} 23. Kb1 {[%clk 0:02:03.9]} 23... Raf8
{[%clk 0:01:22.1]} 24. f3 {[%clk 0:02:03.9]} 24... Kd7 {[%clk 0:01:19]} 25. a3
{[%clk 0:02:02.1]} 25... Rxh1 {[%clk 0:01:12.3]} 26. Rxh1 {[%clk 0:02:03]} 26...
Qf4 {[%clk 0:01:12.9]} 27. Qxf4 {[%clk 0:01:32.6]} 27... Rxf4 {[%clk 0:01:13.8]}
28. Rh7 {[%clk 0:01:33.3]} 28... Nxe5 {[%clk 0:00:49.1]} 29. Rxg7+ {[%clk
0:01:33.1]} 29... Kd6 {[%clk 0:00:49.6]} 30. Bh5 {[%clk 0:01:33.7]} 30... Nxf3
{[%clk 0:00:48.4]} 31. g6 {[%clk 0:01:31.5]} 31... Ne5 {[%clk 0:00:48.1]} 32.
Rxb7 {[%clk 0:01:28.2]} 32... Rf1+ {[%clk 0:00:47.8]} 33. Ka2 {[%clk 0:01:28.3]}
33... Rg1 {[%clk 0:00:48.7]} 34. g7 {[%clk 0:01:21.8]} 34... a5 {[%clk
0:00:41.4]} 35. Be8 {[%clk 0:01:13.6]} 35... d3 {[%clk 0:00:40.1]} 36. cxd3
{[%clk 0:01:05.6]} 36... Nxd3 {[%clk 0:00:41]} 37. Rd7+ {[%clk 0:01:01.8]} 37...
Ke5 {[%clk 0:00:39.2]} 38. Rc7 {[%clk 0:00:59.8]} 38... Rg2 {[%clk 0:00:37.7]}
39. Bb5 {[%clk 0:00:55.6]} 39... Nf4 {[%clk 0:00:34.7]} 40. Be8 {[%clk
0:00:48.8]} 40... d4 {[%clk 0:00:33.4]} 41. Kb3 {[%clk 0:00:34.1]} 41... d3
{[%clk 0:00:30.6]} 42. Rd7 {[%clk 0:00:29.8]} 42... Nd5 {[%clk 0:00:29.4]} 43.
Bh5 {[%clk 0:00:19]} 43... Nf6 {[%clk 0:00:25.5]} 44. Bf3 {[%clk 0:00:19.5]}
44... Rg3 {[%clk 0:00:21.1]} 45. Rxd3 {[%clk 0:00:19.9]} 45... Rxg7 {[%clk
0:00:21.6]} 46. Ka4 {[%clk 0:00:20.5]} 46... Ra7 {[%clk 0:00:17.1]} 47. Kb5
{[%clk 0:00:19.2]} 47... Ne8 {[%clk 0:00:17.1]} 48. Bc6 {[%clk 0:00:17.8]} 48...
Nd6+ {[%clk 0:00:16.3]} 49. Kc5 {[%clk 0:00:18.4]} 49... Nf5 {[%clk 0:00:13.6]}
50. Kb6 {[%clk 0:00:17.9]} 50... Rh7 {[%clk 0:00:12.8]} 51. Kxa5 {[%clk
0:00:18.3]} 51... Rh2 {[%clk 0:00:13.2]} 52. b4 {[%clk 0:00:18.1]} 52... Nd4
{[%clk 0:00:13.7]} 53. b5 {[%clk 0:00:17.1]} 53... Rc2 {[%clk 0:00:11.9]} 54.
Kb6 {[%clk 0:00:17.2]} 54... Nf5 {[%clk 0:00:08.7]} 55. a4 {[%clk 0:00:16.5]}
55... Nd6 {[%clk 0:00:09.3]} 56. Rd1 {[%clk 0:00:13.1]} 56... Nc4+ {[%clk
0:00:09.2]} 57. Kc7 {[%clk 0:00:09.5]} 57... Rb2 {[%clk 0:00:08.2]} 58. Rc1
{[%clk 0:00:08.9]} 58... Na5 {[%clk 0:00:07.6]} 59. b6 {[%clk 0:00:06.4]} 59...
Rb4 {[%clk 0:00:07.5]} 60. Bb5 {[%clk 0:00:06.6]} 60... Kd4 {[%clk 0:00:06.9]}
61. b7 {[%clk 0:00:07.1]} 61... Nxb7 {[%clk 0:00:05.5]} 62. Kxb7 {[%clk
0:00:08]} 62... e5 {[%clk 0:00:06]} 63. Kb6 {[%clk 0:00:08.6]} 63... e4 {[%clk
0:00:06.2]} 64. a5 {[%clk 0:00:09.2]} 64... Rb2 {[%clk 0:00:05.8]} 65. a6 {[%clk
0:00:09.6]} 65... Ra2 {[%clk 0:00:06.2]} 66. Rc4+ {[%clk 0:00:08.9]} 66... Ke5
{[%clk 0:00:05.8]} 67. Ra4 {[%clk 0:00:09.3]} 1-0

[Event "Early-Titled-Tuesday-Blitz-June-18-2024"]
[Site "Chess.com"]
[Date "2024.06.18"]
[Round "8"]
[White "SALVA-DALI"]
[Black "Muracle"]
[Result "1/2-1/2"]
[WhiteElo "2759"]
[BlackElo "2602"]
[TimeControl "180+1"]
[EndTime "9:32:15 PDT"]
[Termination "Game drawn by repetition"]

1. e4 {[%clk 0:03:00.9]} 1... c6 {[%clk 0:02:52.6]} 2. d4 {[%clk 0:02:59.1]}
2... d5 {[%clk 0:02:42.9]} 3. exd5 {[%clk 0:02:59.7]} 3... cxd5 {[%clk
0:02:43.8]} 4. Bd3 {[%clk 0:02:59.6]} 4... Nc6 {[%clk 0:02:43.9]} 5. c3 {[%clk
0:03:00.1]} 5... Nf6 {[%clk 0:02:44.5]} 6. Nf3 {[%clk 0:03:00.2]} 6... Bg4
{[%clk 0:02:41.8]} 7. O-O {[%clk 0:03:00.8]} 7... e6 {[%clk 0:02:41.9]} 8. h3
{[%clk 0:03:01.2]} 8... Bh5 {[%clk 0:02:41.9]} 9. Nbd2 {[%clk 0:03:01.5]} 9...
Bd6 {[%clk 0:02:41.6]} 10. Re1 {[%clk 0:03:01.7]} 10... O-O {[%clk 0:02:41.7]}
11. Nf1 {[%clk 0:03:02.4]} 11... e5 {[%clk 0:02:38.1]} 12. dxe5 {[%clk 0:02:59]}
12... Nxe5 {[%clk 0:02:37.7]} 13. Be2 {[%clk 0:02:59.7]} 13... Nc6 {[%clk
0:02:19.1]} 14. Ng3 {[%clk 0:02:58.8]} 14... Bg6 {[%clk 0:02:17.8]} 15. Nh4
{[%clk 0:02:51.5]} 15... Qc7 {[%clk 0:01:41]} 16. Ngf5 {[%clk 0:02:47.5]} 16...
Bh2+ {[%clk 0:01:40.2]} 17. Kh1 {[%clk 0:02:47.6]} 17... Bf4 {[%clk 0:01:37.2]}
18. Bf3 {[%clk 0:02:38.8]} 18... Rae8 {[%clk 0:01:29.1]} 19. Bxf4 {[%clk
0:02:26.5]} 19... Qxf4 {[%clk 0:01:23.1]} 20. Rxe8 {[%clk 0:02:26.5]} 20... Rxe8
{[%clk 0:01:24]} 21. Qc1 {[%clk 0:02:26.7]} 21... Qe5 {[%clk 0:01:07.4]} 22. Qg5
{[%clk 0:01:51.7]} 22... Ne4 {[%clk 0:00:28.3]} 23. Bxe4 {[%clk 0:01:50.7]}
23... dxe4 {[%clk 0:00:29.2]} 24. Qg4 {[%clk 0:01:37.9]} 24... a6 {[%clk
0:00:15.4]} 25. Rd1 {[%clk 0:01:34.1]} 25... Qf6 {[%clk 0:00:14.7]} 26. Rd6
{[%clk 0:01:29.3]} 26... Qe5 {[%clk 0:00:10.3]} 27. Rd7 {[%clk 0:01:21.7]} 27...
Qe6 {[%clk 0:00:07.2]} 28. Rxb7 {[%clk 0:01:18.7]} 28... Qxa2 {[%clk 0:00:04.4]}
29. Nxg6 {[%clk 0:01:15.3]} 29... hxg6 {[%clk 0:00:04.4]} 30. Nd6 {[%clk
0:01:14.9]} 30... Rd8 {[%clk 0:00:04.5]} 31. Nxf7 {[%clk 0:01:11.9]} 31... Rf8
{[%clk 0:00:03.9]} 32. Qxg6 {[%clk 0:00:54.1]} 32... Rxf7 {[%clk 0:00:02.2]} 33.
Rxf7 {[%clk 0:00:52.2]} 33... Qxf7 {[%clk 0:00:01.6]} 34. Qxc6 {[%clk
0:00:52.8]} 34... Qxf2 {[%clk 0:00:01.7]} 35. Qxe4 {[%clk 0:00:52.6]} 35... Qxb2
{[%clk 0:00:02.3]} 36. Qc4+ {[%clk 0:00:52.1]} 36... Kh8 {[%clk 0:00:02]} 37.
Qxa6 {[%clk 0:00:50.6]} 37... Qc1+ {[%clk 0:00:01.5]} 38. Kh2 {[%clk 0:00:48]}
38... Qf4+ {[%clk 0:00:01.9]} 39. Kg1 {[%clk 0:00:48.7]} 39... Qc1+ {[%clk
0:00:02.4]} 40. Qf1 {[%clk 0:00:47.3]} 40... Qe3+ {[%clk 0:00:02.2]} 41. Kh1
{[%clk 0:00:46.2]} 41... Qxc3 {[%clk 0:00:02.4]} 42. Qf8+ {[%clk 0:00:46.4]}
42... Kh7 {[%clk 0:00:02.5]} 43. Qf3 {[%clk 0:00:47.3]} 43... Qc1+ {[%clk
0:00:02.4]} 44. Kh2 {[%clk 0:00:47.8]} 44... Qc7+ {[%clk 0:00:02.5]} 45. Qg3
{[%clk 0:00:48.6]} 45... Qc4 {[%clk 0:00:02.7]} 46. Qe5 {[%clk 0:00:48.8]} 46...
Qf7 {[%clk 0:00:02.7]} 47. Qe4+ {[%clk 0:00:48.7]} 47... g6 {[%clk 0:00:02.7]}
48. h4 {[%clk 0:00:48.5]} 48... Qc7+ {[%clk 0:00:03.2]} 49. g3 {[%clk
0:00:48.1]} 49... Qd7 {[%clk 0:00:03]} 50. Qe2 {[%clk 0:00:47.5]} 50... Qf5
{[%clk 0:00:02.4]} 51. Kg2 {[%clk 0:00:46.7]} 51... Qf6 {[%clk 0:00:02.9]} 52.
Qf3 {[%clk 0:00:46.6]} 52... Qb6 {[%clk 0:00:02.4]} 53. Qf7+ {[%clk 0:00:45.7]}
53... Kh8 {[%clk 0:00:03]} 54. Qf8+ {[%clk 0:00:45]} 54... Kh7 {[%clk
0:00:03.1]} 55. Qf2 {[%clk 0:00:45.9]} 55... Qc6+ {[%clk 0:00:03.1]} 56. Kh2
{[%clk 0:00:46.6]} 56... Qd6 {[%clk 0:00:03.5]} 57. Qc2 {[%clk 0:00:44.2]} 57...
Kg7 {[%clk 0:00:03.9]} 58. Qc3+ {[%clk 0:00:43.9]} 58... Kf7 {[%clk 0:00:04]}
59. Qc2 {[%clk 0:00:44.8]} 59... Kg7 {[%clk 0:00:04.4]} 60. Kh3 {[%clk
0:00:39.6]} 60... Kf7 {[%clk 0:00:04.6]} 61. Qc3 {[%clk 0:00:36.1]} 61... Qe6+
{[%clk 0:00:03.6]} 62. g4 {[%clk 0:00:34.6]} 62... Qd6 {[%clk 0:00:04.5]} 63.
Qf3+ {[%clk 0:00:31.2]} 63... Kg7 {[%clk 0:00:04.9]} 64. Qg3 {[%clk 0:00:28.8]}
64... Qe6 {[%clk 0:00:04.9]} 65. Qc3+ {[%clk 0:00:28.9]} 65... Kf7 {[%clk
0:00:05.1]} 66. Kg3 {[%clk 0:00:28.1]} 66... Qd6+ {[%clk 0:00:05]} 67. Kg2
{[%clk 0:00:27.1]} 67... Kg8 {[%clk 0:00:03.4]} 68. Qc4+ {[%clk 0:00:23.6]}
68... Kf8 {[%clk 0:00:02.5]} 69. Qe2 {[%clk 0:00:19.4]} 69... Kg7 {[%clk
0:00:02.8]} 70. Kh3 {[%clk 0:00:18.8]} 70... Qa3+ {[%clk 0:00:02.6]} 71. Kg2
{[%clk 0:00:17.1]} 71... Qd6 {[%clk 0:00:03.5]} 72. Qf2 {[%clk 0:00:17]} 72...
Qc6+ {[%clk 0:00:03.2]} 73. Qf3 {[%clk 0:00:17.3]} 73... Qd6 {[%clk 0:00:04.1]}
74. g5 {[%clk 0:00:15.1]} 74... Qd2+ {[%clk 0:00:04.3]} 75. Kg3 {[%clk
0:00:14.2]} 75... Qd6+ {[%clk 0:00:04]} 76. Kh3 {[%clk 0:00:13.1]} 76... Qd7+
{[%clk 0:00:04.1]} 77. Kg2 {[%clk 0:00:12.6]} 77... Qd2+ {[%clk 0:00:04.6]} 78.
Qf2 {[%clk 0:00:13.3]} 78... Qd5+ {[%clk 0:00:04.7]} 79. Kg3 {[%clk 0:00:12.4]}
79... Qd3+ {[%clk 0:00:03.4]} 80. Qf3 {[%clk 0:00:12.6]} 80... Qd6+ {[%clk
0:00:03.9]} 81. Kf2 {[%clk 0:00:10.5]} 81... Qd2+ {[%clk 0:00:03.9]} 82. Kf1
{[%clk 0:00:09.5]} 82... Qc1+ {[%clk 0:00:03.8]} 83. Kg2 {[%clk 0:00:09.5]}
83... Qd2+ {[%clk 0:00:04.2]} 1/2-1/2

[Event "Early-Titled-Tuesday-Blitz-June-18-2024"]
[Site "Chess.com"]
[Date "2024.06.18"]
[Round "8"]
[White "Bilan_Danila"]
[Black "MatthewG-p4p"]
[Result "1-0"]
[WhiteElo "2588"]
[BlackElo "2826"]
[TimeControl "180+1"]
[EndTime "9:32:17 PDT"]
[Termination "Bilan_Danila won by checkmate"]

1. d4 {[%clk 0:03:00.9]} 1... Nf6 {[%clk 0:03:00.1]} 2. Nf3 {[%clk 0:03:00.7]}
2... c5 {[%clk 0:03:00.8]} 3. e3 {[%clk 0:03:00.8]} 3... g6 {[%clk 0:03:00.9]}
4. Bd3 {[%clk 0:03:00.5]} 4... Bg7 {[%clk 0:03:01.5]} 5. O-O {[%clk 0:03:00.8]}
5... cxd4 {[%clk 0:03:01.6]} 6. exd4 {[%clk 0:03:00.8]} 6... O-O {[%clk
0:03:02.5]} 7. Bg5 {[%clk 0:03:00.8]} 7... Nc6 {[%clk 0:03:02.2]} 8. c3 {[%clk
0:03:00.8]} 8... d6 {[%clk 0:03:02.6]} 9. Nbd2 {[%clk 0:03:00.9]} 9... e5 {[%clk
0:03:02.8]} 10. dxe5 {[%clk 0:02:59.1]} 10... dxe5 {[%clk 0:03:03.7]} 11. Ne4
{[%clk 0:02:59.1]} 11... Bf5 {[%clk 0:02:37.7]} 12. Nxf6+ {[%clk 0:02:28]} 12...
Bxf6 {[%clk 0:02:37.6]} 13. Bxf5 {[%clk 0:02:24.9]} 13... Bxg5 {[%clk
0:02:15.3]} 14. Nxg5 {[%clk 0:02:14.7]} 14... Qxg5 {[%clk 0:02:16.2]} 15. Be4
{[%clk 0:02:15.6]} 15... Rad8 {[%clk 0:02:15.7]} 16. Qb3 {[%clk 0:02:12.7]}
16... Na5 {[%clk 0:02:10.2]} 17. Qb5 {[%clk 0:02:10.4]} 17... Nc6 {[%clk
0:01:17.4]} 18. Qxb7 {[%clk 0:01:56.6]} 18... Nb8 {[%clk 0:01:12.1]} 19. Rad1
{[%clk 0:01:37.2]} 19... a6 {[%clk 0:01:05.9]} 20. Qb3 {[%clk 0:01:07]} 20...
Nd7 {[%clk 0:00:58.3]} 21. Qc2 {[%clk 0:00:48.3]} 21... Nf6 {[%clk 0:00:52.9]}
22. g3 {[%clk 0:00:43.3]} 22... Qg4 {[%clk 0:00:49.5]} 23. Bg2 {[%clk
0:00:36.9]} 23... Qe6 {[%clk 0:00:49.9]} 24. c4 {[%clk 0:00:29.5]} 24... Rc8
{[%clk 0:00:49.3]} 25. b3 {[%clk 0:00:28.8]} 25... Nd7 {[%clk 0:00:48]} 26. Rd2
{[%clk 0:00:21.7]} 26... Nc5 {[%clk 0:00:45.9]} 27. Rfd1 {[%clk 0:00:21.7]}
27... Qe7 {[%clk 0:00:46.1]} 28. Rd5 {[%clk 0:00:19.2]} 28... f6 {[%clk
0:00:43.1]} 29. h4 {[%clk 0:00:17.4]} 29... Rc7 {[%clk 0:00:42]} 30. Qe2 {[%clk
0:00:13.8]} 30... Kg7 {[%clk 0:00:39.5]} 31. h5 {[%clk 0:00:14.3]} 31... Ne6
{[%clk 0:00:39.2]} 32. hxg6 {[%clk 0:00:13.2]} 32... hxg6 {[%clk 0:00:40.1]} 33.
Rd6 {[%clk 0:00:13.2]} 33... Nd4 {[%clk 0:00:40.4]} 34. R1xd4 {[%clk 0:00:12.2]}
34... exd4 {[%clk 0:00:41.3]} 35. Qxe7+ {[%clk 0:00:12.8]} 35... Rxe7 {[%clk
0:00:42.1]} 36. Rxd4 {[%clk 0:00:13.7]} 36... Re1+ {[%clk 0:00:41.5]} 37. Bf1
{[%clk 0:00:14.3]} 37... Ra1 {[%clk 0:00:41.8]} 38. Rd2 {[%clk 0:00:14.6]} 38...
Re8 {[%clk 0:00:42.2]} 39. Kg2 {[%clk 0:00:14.5]} 39... Ree1 {[%clk 0:00:43.1]}
40. Be2 {[%clk 0:00:14.8]} 40... f5 {[%clk 0:00:41.9]} 41. c5 {[%clk 0:00:15.2]}
41... Rac1 {[%clk 0:00:38.3]} 42. Bc4 {[%clk 0:00:15.8]} 42... Re5 {[%clk
0:00:38.1]} 43. c6 {[%clk 0:00:12.7]} 43... Rc5 {[%clk 0:00:38.6]} 44. Rd7+
{[%clk 0:00:11.4]} 44... Kf6 {[%clk 0:00:37]} 45. c7 {[%clk 0:00:12.3]} 45... g5
{[%clk 0:00:32.6]} 46. Kf3 {[%clk 0:00:12.7]} 46... a5 {[%clk 0:00:32]} 47. Ke3
{[%clk 0:00:13]} 47... Rc6 {[%clk 0:00:05.4]} 48. Rd6+ {[%clk 0:00:08.6]} 48...
Rxd6 {[%clk 0:00:06.1]} 49. c8=Q {[%clk 0:00:09.5]} 49... Re1+ {[%clk
0:00:06.7]} 50. Kf3 {[%clk 0:00:09.5]} 50... g4+ {[%clk 0:00:07.4]} 51. Kg2
{[%clk 0:00:06]} 51... Rdd1 {[%clk 0:00:08.1]} 52. Qf8+ {[%clk 0:00:04.5]} 52...
Ke5 {[%clk 0:00:06.7]} 53. Qg7+ {[%clk 0:00:04.8]} 53... Ke4 {[%clk 0:00:05.8]}
54. Qe7+ {[%clk 0:00:03.6]} 54... Kd4 {[%clk 0:00:06.7]} 55. Qf6+ {[%clk
0:00:03.1]} 55... Kc5 {[%clk 0:00:07]} 56. Qf8+ {[%clk 0:00:03.7]} 56... Kc6
{[%clk 0:00:07.2]} 57. Qf6+ {[%clk 0:00:03.6]} 57... Kc7 {[%clk 0:00:08.1]} 58.
Qf7+ {[%clk 0:00:03.9]} 58... Kb6 {[%clk 0:00:08.5]} 59. Qf6+ {[%clk 0:00:03.5]}
59... Kc7 {[%clk 0:00:09.3]} 60. Qg7+ {[%clk 0:00:03.7]} 60... Kd6 {[%clk
0:00:09.8]} 61. Qh6+ {[%clk 0:00:04.3]} 61... Kc7 {[%clk 0:00:10.4]} 62. f3
{[%clk 0:00:04.9]} 62... Rg1+ {[%clk 0:00:09.5]} 63. Kf2 {[%clk 0:00:05.2]}
63... gxf3 {[%clk 0:00:05.4]} 64. Kxf3 {[%clk 0:00:04.7]} 64... Ra1 {[%clk
0:00:05]} 65. a4 {[%clk 0:00:03.9]} 65... Rgd1 {[%clk 0:00:04.3]} 66. Qg7+
{[%clk 0:00:03.7]} 66... Kb6 {[%clk 0:00:04.5]} 67. Qf6+ {[%clk 0:00:03.9]}
67... Kc5 {[%clk 0:00:03.9]} 68. Qe7+ {[%clk 0:00:04.6]} 68... Kd4 {[%clk
0:00:03.5]} 69. Qd8+ {[%clk 0:00:03.8]} 69... Kc3 {[%clk 0:00:04.4]} 70. Qxa5+
{[%clk 0:00:04.1]} 70... Kb2 {[%clk 0:00:04.7]} 71. Qxf5 {[%clk 0:00:03.7]}
71... Rac1 {[%clk 0:00:05.1]} 72. Kg4 {[%clk 0:00:03.8]} 72... Rc3 {[%clk
0:00:05.3]} 73. Qf6 {[%clk 0:00:04]} 73... Rc1 {[%clk 0:00:05.5]} 74. Qe5 {[%clk
0:00:04.4]} 74... Ka3 {[%clk 0:00:06.4]} 75. a5 {[%clk 0:00:04.8]} 75... Kb4
{[%clk 0:00:06.5]} 76. a6 {[%clk 0:00:05.2]} 76... Ra1 {[%clk 0:00:05.4]} 77. a7
{[%clk 0:00:04.3]} 77... Rxa7 {[%clk 0:00:06.3]} 78. Qb8+ {[%clk 0:00:04.6]}
78... Rb7 {[%clk 0:00:06.4]} 79. Qxb7+ {[%clk 0:00:05.1]} 79... Ka3 {[%clk
0:00:06.8]} 80. Qa6+ {[%clk 0:00:05.2]} 80... Kb2 {[%clk 0:00:07.7]} 81. Qf6
{[%clk 0:00:05.7]} 81... Kc2 {[%clk 0:00:04.6]} 82. Qxc3+ {[%clk 0:00:06.5]}
82... Kb1 {[%clk 0:00:04.6]} 83. Kf5 {[%clk 0:00:07.4]} 83... Ka2 {[%clk
0:00:04.8]} 84. b4+ {[%clk 0:00:07.7]} 84... Kb1 {[%clk 0:00:05.7]} 85. Qd2
{[%clk 0:00:06.7]} 85... Ka1 {[%clk 0:00:06.6]} 86. Qa2# {[%clk 0:00:07.5]} 1-0

[Event "Early-Titled-Tuesday-Blitz-June-18-2024"]
[Site "Chess.com"]
[Date "2024.06.18"]
[Round "8"]
[White "Roachelley"]
[Black "IlanSchnaider"]
[Result "1-0"]
[WhiteElo "2560"]
[BlackElo "2798"]
[TimeControl "180+1"]
[EndTime "9:32:29 PDT"]
[Termination "Roachelley won by checkmate"]

1. Nf3 {[%clk 0:02:55.3]} 1... Nf6 {[%clk 0:02:59]} 2. e3 {[%clk 0:02:55.8]}
2... g6 {[%clk 0:02:58.6]} 3. b3 {[%clk 0:02:55.9]} 3... Bg7 {[%clk 0:02:57.5]}
4. Bb2 {[%clk 0:02:56.5]} 4... O-O {[%clk 0:02:58.1]} 5. d4 {[%clk 0:02:56.9]}
5... d5 {[%clk 0:02:57.8]} 6. Nbd2 {[%clk 0:02:57.5]} 6... Ne4 {[%clk
0:02:55.6]} 7. Nxe4 {[%clk 0:02:56.8]} 7... dxe4 {[%clk 0:02:54.1]} 8. Nd2
{[%clk 0:02:57.4]} 8... c5 {[%clk 0:02:34.8]} 9. Nxe4 {[%clk 0:02:48.9]} 9...
cxd4 {[%clk 0:02:34.6]} 10. Bxd4 {[%clk 0:02:45.7]} 10... Bf5 {[%clk 0:01:32.6]}
11. Bxg7 {[%clk 0:02:32.9]} 11... Kxg7 {[%clk 0:01:31.2]} 12. Bd3 {[%clk
0:02:13.2]} 12... Qd5 {[%clk 0:01:12]} 13. f3 {[%clk 0:01:59]} 13... Nc6 {[%clk
0:01:08.6]} 14. O-O {[%clk 0:01:47.6]} 14... Rfd8 {[%clk 0:01:08.3]} 15. Nf2
{[%clk 0:01:34.7]} 15... Qc5 {[%clk 0:00:51.8]} 16. Qe2 {[%clk 0:01:32.3]} 16...
Be6 {[%clk 0:00:47.1]} 17. Ne4 {[%clk 0:01:21]} 17... Qe5 {[%clk 0:00:44.9]} 18.
f4 {[%clk 0:01:18.1]} 18... Qa5 {[%clk 0:00:44.3]} 19. Ng5 {[%clk 0:01:16.7]}
19... Bf5 {[%clk 0:00:35.2]} 20. e4 {[%clk 0:00:59]} 20... Bd7 {[%clk
0:00:34.8]} 21. Nf3 {[%clk 0:00:53.8]} 21... Bg4 {[%clk 0:00:32.1]} 22. Qf2
{[%clk 0:00:50.1]} 22... Bxf3 {[%clk 0:00:26]} 23. Qxf3 {[%clk 0:00:51]} 23...
Rac8 {[%clk 0:00:26.1]} 24. h3 {[%clk 0:00:38.9]} 24... Nd4 {[%clk 0:00:24.2]}
25. Qf2 {[%clk 0:00:39]} 25... Nxc2 {[%clk 0:00:19.4]} 26. Rad1 {[%clk
0:00:21.9]} 26... Nb4 {[%clk 0:00:17.9]} 27. Bc4 {[%clk 0:00:18.7]} 27... Rxd1
{[%clk 0:00:17]} 28. Rxd1 {[%clk 0:00:19.3]} 28... Rd8 {[%clk 0:00:16.3]} 29.
Rxd8 {[%clk 0:00:17.1]} 29... Qxd8 {[%clk 0:00:16.9]} 30. a3 {[%clk 0:00:14.8]}
30... Nc6 {[%clk 0:00:13.6]} 31. Bd5 {[%clk 0:00:15.1]} 31... a6 {[%clk
0:00:09.2]} 32. Bxc6 {[%clk 0:00:14.5]} 32... bxc6 {[%clk 0:00:09.7]} 33. Kh2
{[%clk 0:00:13.9]} 33... Qd6 {[%clk 0:00:08.8]} 34. a4 {[%clk 0:00:11.1]} 34...
Qb4 {[%clk 0:00:08.5]} 35. Qe3 {[%clk 0:00:10.7]} 35... c5 {[%clk 0:00:08.9]}
36. Qd3 {[%clk 0:00:10.8]} 36... a5 {[%clk 0:00:07.2]} 37. Kg3 {[%clk
0:00:10.1]} 37... e6 {[%clk 0:00:06]} 38. Kf3 {[%clk 0:00:10.3]} 38... Qe1
{[%clk 0:00:05.9]} 39. Qc4 {[%clk 0:00:09.6]} 39... Qd1+ {[%clk 0:00:06]} 40.
Kg3 {[%clk 0:00:10]} 40... Qe1+ {[%clk 0:00:04.1]} 41. Kh2 {[%clk 0:00:10.2]}
41... Qe3 {[%clk 0:00:03.7]} 42. e5 {[%clk 0:00:07.8]} 42... g5 {[%clk
0:00:04.3]} 43. fxg5 {[%clk 0:00:07.3]} 43... Qxe5+ {[%clk 0:00:04.5]} 44. Kh1
{[%clk 0:00:07.5]} 44... Qxg5 {[%clk 0:00:05.2]} 45. Qc3+ {[%clk 0:00:08.1]}
45... f6 {[%clk 0:00:04.8]} 46. Qxa5 {[%clk 0:00:08.6]} 46... Qc1+ {[%clk
0:00:04.7]} 47. Kh2 {[%clk 0:00:09.2]} 47... Qf4+ {[%clk 0:00:05.3]} 48. Kh1
{[%clk 0:00:09.8]} 48... Qd4 {[%clk 0:00:06]} 49. Qe1 {[%clk 0:00:09.1]} 49...
Qd3 {[%clk 0:00:04.6]} 50. Qh4 {[%clk 0:00:04.5]} 50... Qxb3 {[%clk 0:00:03.6]}
51. Qg4+ {[%clk 0:00:04.8]} 51... Kf8 {[%clk 0:00:03.7]} 52. Qh5 {[%clk
0:00:04.2]} 52... Qb1+ {[%clk 0:00:03.6]} 53. Kh2 {[%clk 0:00:04.3]} 53... Ke7
{[%clk 0:00:04.5]} 54. Qxc5+ {[%clk 0:00:04.5]} 54... Kf7 {[%clk 0:00:04.8]} 55.
Qc7+ {[%clk 0:00:04.7]} 55... Kg6 {[%clk 0:00:04.9]} 56. a5 {[%clk 0:00:05.4]}
56... Qb5 {[%clk 0:00:03.6]} 57. Qg3+ {[%clk 0:00:05.6]} 57... Kf7 {[%clk
0:00:03.2]} 58. Qc7+ {[%clk 0:00:05.7]} 58... Kg6 {[%clk 0:00:03.8]} 59. Qg3+
{[%clk 0:00:06.3]} 59... Kh6 {[%clk 0:00:03.2]} 60. Qf4+ {[%clk 0:00:06.9]}
60... Kh5 {[%clk 0:00:02]} 61. g4+ {[%clk 0:00:05.4]} 61... Kg6 {[%clk
0:00:01.9]} 62. Qe4+ {[%clk 0:00:05.5]} 62... Kg7 {[%clk 0:00:01.3]} 63. Qg2
{[%clk 0:00:03.8]} 63... Qxa5 {[%clk 0:00:01.6]} 64. Qb7+ {[%clk 0:00:04.1]}
64... Kg6 {[%clk 0:00:01.5]} 65. Qe4+ {[%clk 0:00:04.5]} 65... Kf7 {[%clk
0:00:01.8]} 66. Qxh7+ {[%clk 0:00:04.4]} 66... Ke8 {[%clk 0:00:02.5]} 67. Qg8+
{[%clk 0:00:04.5]} 67... Kd7 {[%clk 0:00:03]} 68. Qg7+ {[%clk 0:00:05]} 68...
Kd6 {[%clk 0:00:03.1]} 69. Qxf6 {[%clk 0:00:05.5]} 69... Qd2+ {[%clk 0:00:03.6]}
70. Kg3 {[%clk 0:00:05.9]} 70... Qe3+ {[%clk 0:00:04.2]} 71. Qf3 {[%clk
0:00:06.5]} 71... Qg1+ {[%clk 0:00:04]} 72. Qg2 {[%clk 0:00:06.9]} 72... Qe1+
{[%clk 0:00:04.5]} 73. Kh2 {[%clk 0:00:07.5]} 73... e5 {[%clk 0:00:03.7]} 74.
Qg3 {[%clk 0:00:07.8]} 74... Qd2+ {[%clk 0:00:03.8]} 75. Qg2 {[%clk 0:00:08.3]}
75... Qg5 {[%clk 0:00:04.2]} 76. Qg3 {[%clk 0:00:08.3]} 76... Ke6 {[%clk
0:00:03.7]} 77. Qg2 {[%clk 0:00:08.6]} 77... Qf4+ {[%clk 0:00:02.7]} 78. Qg3
{[%clk 0:00:09.2]} 78... Qd2+ {[%clk 0:00:03.2]} 79. Qg2 {[%clk 0:00:09.8]}
79... Qd4 {[%clk 0:00:03]} 80. Qc6+ {[%clk 0:00:09.5]} 80... Kf7 {[%clk
0:00:02.6]} 81. Qf3+ {[%clk 0:00:10]} 81... Kg7 {[%clk 0:00:02.3]} 82. Qg2
{[%clk 0:00:10.5]} 82... e4 {[%clk 0:00:02.7]} 83. Qg3 {[%clk 0:00:10.6]} 83...
e3 {[%clk 0:00:02.8]} 84. Qc7+ {[%clk 0:00:10.9]} 84... Kf6 {[%clk 0:00:02.4]}
85. Qc6+ {[%clk 0:00:11.1]} 85... Ke7 {[%clk 0:00:02]} 86. Qc7+ {[%clk
0:00:11.2]} 86... Ke6 {[%clk 0:00:02.4]} 87. Qc6+ {[%clk 0:00:11.7]} 87... Ke5
{[%clk 0:00:02.7]} 88. Qe8+ {[%clk 0:00:11.8]} 88... Kf4 {[%clk 0:00:02.3]} 89.
Qf7+ {[%clk 0:00:10.8]} 89... Ke4 {[%clk 0:00:01.8]} 90. Qf5# {[%clk 0:00:11.2]}
1-0